bitfinex/quotes_ETHUSD_20250126
["timestamp","ask_amount","ask_price","bid_price","bid_amount"]
[1737933005160,4.157617,3269.2,3268.3,0.7972]
[1737933005329,3.05911,3269.0,3268.3,0.7972]
[1737933005517,3.05911,3269.0,3268.3,3.85681]
[1737933005953,3.05911,3269.0,3268.3,0.7972]
[1737933006259,1.098677,3269.2,3268.2,0.89]
[1737933006260,3.05943,3268.6,3268.2,0.89]
[1737933007062,4.94001181,3268.6,3268.2,0.89]
[1737933008100,3.05969,3268.3,3268.2,0.89]
[1737933008767,3.05969,3268.3,3268.2,0.88894908]
[1737933011120,3.05933,3268.7,3268.2,0.88894908]
[1737933011273,3.05943,3268.6,3268.2,0.88894908]
[1737933011796,0.7835,3268.8,3268.2,0.88894908]
[1737933011971,0.61224051,3269.4,3268.3,0.0234304]
[1737933012172,0.61065989,3269.7,3269.2,3.87909]
[1737933012404,0.61065989,3269.7,3269.2,3.90249853]
[1737933012583,0.03823059,3269.6,3268.4,3.05952]
[1737933012911,3.05912,3269.0,3268.3,0.8203]
[1737933013118,3.05949,3268.6,3268.3,0.8203]
[1737933013414,3.05941,3268.6,3268.2,0.88894908]
[1737933013636,3.05969,3268.3,3268.2,0.88894908]
[1737933013773,0.7835,3268.8,3268.2,0.88894908]
[1737933014420,0.8055,3269.3,3268.2,0.88894908]
[1737933014602,3.05895,3269.1,3268.2,0.88894908]
[1737933015114,3.86427,3269.3,3268.2,0.88894908]
[1737933015470,0.246,3269.2,3268.2,0.88894908]
[1737933015676,3.05921,3268.9,3268.2,0.88894908]
[1737933015875,3.365141,3268.8,3268.2,0.88894908]
[1737933016117,3.05959,3268.5,3268.2,0.88894908]
[1737933016619,3.05962,3268.4,3268.2,0.88894908]
[1737933016818,3.85209,3268.3,3268.2,0.88894908]
[1737933017446,0.7924,3268.3,3268.2,0.88894908]
[1737933017716,0.7924,3268.6,3268.2,0.88894908]
[1737933018079,0.246,3268.9,3268.2,0.88894908]
[1737933018080,3.30515,3268.9,3268.2,0.88894908]
[1737933018279,3.05915,3268.9,3268.2,0.88894908]
[1737933018884,3.05923,3268.8,3268.2,0.88894908]
[1737933020284,3.05935,3268.7,3268.2,0.88894908]
[1737933020754,3.05923,3268.8,3268.2,0.88894908]
[1737933020883,3.05937,3268.7,3268.2,0.88894908]
[1737933021084,3.0595,3268.6,3268.2,0.88894908]
[1737933021419,3.83829,3268.3,3268.2,0.88894908]
[1737933021630,9.26354092,3268.3,3268.2,9.08e-06]
[1737933021793,3.06127,3266.7,3266.1,0.41662505]
[1737933021994,3.06073,3267.2,3266.5,3.06135]
[1737933022207,3.06058,3267.4,3266.5,3.367505]
[1737933022408,3.06008,3267.9,3267.0,3.06086]
[1737933022611,3.06008,3267.9,3267.2,3.06071]
[1737933022931,3.0602,3267.8,3267.0,3.06088]
[1737933023132,3.0602,3267.8,3267.1,3.06079]
[1737933023326,3.06039,3267.6,3266.8,3.06101]
[1737933023627,3.36635,3267.7,3266.8,3.06101]
[1737933023628,3.06052,3267.5,3266.8,3.06101]
[1737933023983,3.06033,3267.7,3266.5,0.306135]
[1737933024189,0.7786,3268.1,3267.3,3.06061]
[1737933024387,3.05952,3268.5,3267.6,3.06034]
[1737933024613,3.05943,3268.6,3267.8,3.06014]
[1737933024816,3.05943,3268.6,3266.8,3.06109]
[1737933024817,3.05977,3268.3,3267.6,3.88829]
[1737933025042,3.05988,3268.1,3267.6,0.828]
[1737933025246,3.05999,3268.0,3267.3,3.0606]
[1737933026153,3.05999,3268.0,3267.2,0.828]
[1737933026154,0.03825297,3267.9,3267.2,0.828]
[1737933026339,3.06024,3267.8,3267.2,0.828]
[1737933026915,3.09853554,3267.7,3267.0,3.06088]
[1737933027129,0.03825554,3267.7,3266.9,3.06097]
[1737933027345,3.06045,3267.5,3266.8,0.828]
[1737933027549,3.06064,3267.3,3266.8,0.828]
[1737933027729,3.06077,3267.2,3266.8,0.828]
[1737933027928,0.7984,3267.2,3266.5,3.06137]
[1737933028129,0.30984955,3267.6,3267.1,3.06072]
[1737933028332,4.9459855,3267.7,3267.1,3.06072]
[1737933028557,4.9459855,3267.7,3267.1,3.86432]
[1737933029262,1.8857255,3267.7,3267.3,3.06061]
[1737933029421,1.8857255,3267.7,3267.1,0.8036]
[1737933029621,3.06035,3267.6,3267.1,0.8036]
[1737933029851,1.8857255,3267.7,3267.0,3.06084]
[1737933030158,1.8857255,3267.7,3267.2,3.06071]
[1737933030715,1.8857255,3267.6,3267.2,3.06071]
[1737933030917,1.8857255,3267.6,3266.9,3.06093]
[1737933031141,4.9460755,3267.6,3266.9,3.06093]
[1737933031455,4.9460755,3267.6,3266.7,3.87168]
[1737933031456,3.06061,3267.4,3266.7,3.87168]
[1737933031632,3.06061,3267.4,3266.8,3.06109]
[1737933032367,3.06045,3267.5,3266.9,3.06098]
[1737933032541,1.8857255,3267.6,3267.4,3.06047]
[1737933032756,1.8857255,3267.6,3267.5,3.85254]
[1737933032941,1.8857255,3267.6,3267.5,3.90980099]
[1737933034555,3.05999,3268.0,3267.5,0.05726099]
[1737933034767,3.05954,3268.5,3267.8,3.06014]
[1737933035137,3.05961,3268.4,3267.7,3.06019]
[1737933035338,3.671525,3268.4,3267.9,0.05726099]
[1737933035661,3.671525,3268.4,3268.0,0.05726099]
[1737933036162,0.611915,3268.4,3267.9,3.06006]
[1737933036323,3.05951,3268.5,3268.1,0.05726099]
[1737933036519,3.05951,3268.5,3267.9,3.06006]
[1737933036756,3.05951,3268.5,3268.2,0.05726099]
[1737933036959,1.88537835,3268.2,3268.1,3.05988]
[1737933039926,1.88537835,3268.3,3268.1,3.05988]
[1737933040126,0.7792,3268.2,3266.9,3.83851]
[1737933040332,3.06093,3267.0,3266.4,0.7776]
[1737933040633,3.0608,3267.2,3266.4,0.7776]
[1737933040866,3.0608,3267.2,3266.5,3.06135]
[1737933041041,3.06085,3267.1,3266.5,3.06135]
[1737933041377,3.06101,3266.9,3266.3,3.06151]
[1737933041965,0.7501,3267.3,3266.7,3.0611]
[1737933042139,3.06073,3267.2,3266.6,3.06127]
[1737933042482,3.06082,3267.1,3266.3,3.06154]
[1737933042780,4.94619835,3267.1,3266.4,3.06144]
[1737933043067,1.88537835,3267.1,3266.5,3.06134]
[1737933043434,1.88537835,3267.1,3266.9,3.06097]
[1737933043631,1.88537835,3267.1,3267.0,3.82721]
[1737933043827,1.88537835,3267.1,3267.0,3.87323827]
[1737933044231,1.88537835,3267.1,3267.0,3.97323827]
[1737933044232,8.35e-06,3267.1,3267.0,3.97323827]
[1737933044433,8.35e-06,3267.1,3267.0,3.99666528]
[1737933044673,8.35e-06,3267.1,3267.0,4.70242881]
[1737933045172,8.35e-06,3267.1,3267.0,4.5790018]
[1737933045678,3.05953,3268.5,3267.0,4.5790018]
[1737933045679,3.05953,3268.5,3267.7,3.06022]
[1737933046094,3.0597,3268.3,3267.8,0.04600067]
[1737933046251,3.05981,3268.2,3267.8,0.04600067]
[1737933046451,3.05981,3268.2,3267.5,3.06044]
[1737933046750,3.0597,3268.3,3267.6,0.04600067]
[1737933046962,0.30597,3268.2,3267.6,0.04600067]
[1737933047166,0.25597,3268.2,3267.6,3.10634067]
[1737933048072,3.0597,3268.3,3267.6,3.10634067]
[1737933048073,0.387452,3268.8,3267.6,0.04600067]
[1737933048261,0.387452,3268.8,3267.7,0.7949]
[1737933048659,0.387452,3268.8,3268.1,3.05981]
[1737933048863,3.05933,3268.7,3268.1,3.05981]
[1737933049178,1.224422,3269.3,3268.6,3.05932]
[1737933049479,3.05852,3269.6,3269.0,3.05903]
[1737933049667,0.4217305,3269.5,3269.0,3.05903]
[1737933049836,0.7919,3269.9,3269.3,3.05867]
[1737933050034,3.05811,3270.0,3269.3,3.05867]
[1737933050262,3.05811,3270.0,3269.4,3.10410349]
[1737933050482,1.39077072,3270.2,3269.4,0.04545349]
[1737933050640,0.60397072,3270.2,3269.7,3.0583]
[1737933050844,0.97014279,3270.2,3269.8,3.10313903]
[1737933051090,0.60397072,3270.2,3269.8,3.10313903]
[1737933051384,3.05765,3270.5,3269.8,3.10313903]
[1737933051552,0.7868,3270.6,3269.9,3.05818]
[1737933051755,3.84438,3270.6,3269.9,3.05818]
[1737933051950,2.24658469,3270.8,3270.0,0.04486065]
[1737933052164,0.6114452,3271.3,3270.6,3.05751]
[1737933052479,1.96031265,3271.7,3270.7,3.10197746]
[1737933052705,3.05697,3271.3,3270.7,0.04455746]
[1737933053191,3.05715,3271.1,3270.4,0.7622]
[1737933053358,3.05719,3271.0,3270.8,0.04424979]
[1737933053558,0.305719,3270.9,3270.4,0.7622]
[1737933053795,0.305719,3270.9,3270.4,3.81989]
[1737933053979,3.05699,3271.2,3270.5,3.05754]
[1737933054300,3.05677,3271.5,3270.7,3.05741]
[1737933054447,3.05651,3271.7,3270.9,3.05719]
[1737933054654,3.83549,3271.8,3271.0,3.05714]
[1737933054862,0.689182,3271.7,3271.0,3.05714]
[1737933055076,3.745762,3271.7,3271.0,3.05714]
[1737933055564,3.745762,3271.7,3270.8,3.08070909]
[1737933055565,3.05661,3271.6,3270.8,3.05735]
[1737933055975,0.689182,3271.7,3270.8,3.05735]
[1737933056267,3.05633,3271.9,3270.4,0.7622]
[1737933056268,0.60734618,3272.0,3271.2,0.8282]
[1737933056689,3.0564,3271.9,3271.2,3.88516]
[1737933057400,3.05643,3271.8,3271.2,0.8282]
[1737933057558,0.60734618,3272.0,3271.2,3.88515]
[1737933057761,3.05694,3271.3,3270.4,3.05769]
[1737933057956,3.05718,3271.0,3270.3,0.8282]
[1737933058160,3.05754,3270.6,3270.3,0.8282]
[1737933058355,3.05754,3270.6,3269.8,0.8282]
[1737933058583,3.05782,3270.3,3269.8,0.8282]
[1737933058860,3.05774,3270.4,3269.8,0.8282]
[1737933059072,3.05784,3270.3,3269.8,0.8282]
[1737933059302,3.05813,3270.0,3269.4,0.8198]
[1737933059498,0.7673,3270.3,3269.0,0.8198]
[1737933059802,0.7673,3270.3,3268.0,0.2]
[1737933059803,3.0,3269.8,3268.0,3.05997]
[1737933059996,3.05791,3270.2,3267.9,0.8198]
[1737933059997,3.05958,3268.5,3267.9,0.8198]
[1737933060199,3.05932,3268.7,3268.0,3.0599]
[1737933060494,0.7673,3269.4,3268.0,3.05997]
[1737933060495,3.05901,3269.1,3268.0,3.05997]
[1737933060696,3.05887,3269.2,3268.5,3.0595]
[1737933061015,7.06697,3269.4,3267.9,4.267848]
[1737933061016,3.05877,3269.3,3268.6,3.05939]
[1737933061502,0.03823611,3269.2,3267.9,1.207798]
[1737933061810,1.0083,3269.4,3268.0,0.4267918]
[1737933061965,0.03824436,3269.3,3267.9,0.8198]
[1737933062200,3.05953,3268.5,3267.9,0.8198]
[1737933062512,3.05957,3268.5,3267.9,0.8198]
[1737933062829,3.05963,3268.4,3267.9,0.8198]
[1737933063145,3.05932,3268.7,3267.9,0.8198]
[1737933063324,3.05941,3268.6,3267.9,0.8198]
[1737933063648,3.365252,3268.7,3267.9,0.8198]
[1737933063849,3.05957,3268.5,3267.9,0.8198]
[1737933064646,3.05967,3268.4,3267.9,0.8198]
[1737933064860,3.05957,3268.5,3267.9,0.8198]
[1737933065136,3.81244,3269.0,3268.1,3.05987]
[1737933065332,3.05948,3268.6,3267.9,3.87986]
[1737933065537,3.05912,3269.0,3268.0,0.02343274]
[1737933065695,3.05912,3269.0,3268.3,3.05961]
[1737933066098,3.05912,3269.0,3268.4,0.0360518]
[1737933066312,3.05914,3268.9,3268.4,0.0360518]
[1737933066511,3.05897,3269.1,3268.4,0.0360518]
[1737933066733,3.05887,3269.2,3268.4,3.0956418]
[1737933066912,3.05902,3269.1,3268.4,3.0956418]
[1737933067107,0.791,3269.4,3268.4,0.34561598]
[1737933067309,0.6211028,3269.7,3269.0,3.05901]
[1737933067310,4.4968128,3269.7,3269.0,3.05901]
[1737933067514,3.05821,3269.9,3269.1,3.05892]
[1737933067837,3.05821,3269.9,3269.2,3.05882]
[1737933068200,3.05821,3269.9,3269.3,3.05873]
[1737933068610,3.0583,3269.8,3269.4,0.0360518]
[1737933068927,3.05857,3269.5,3268.8,3.0592]
[1737933069508,3.05887,3269.2,3268.6,0.8091]
[1737933069713,3.05904,3269.0,3268.2,0.75]
[1737933069928,3.0593,3268.8,3268.2,0.75]
[1737933070249,0.03823734,3269.1,3267.9,3.05999]
[1737933070410,3.05948,3268.6,3267.8,0.75]
[1737933070611,3.05951,3268.5,3267.9,3.06005]
[1737933070949,3.05951,3268.5,3267.8,1.131024]
[1737933070950,3.05897,3269.1,3267.8,1.131024]
[1737933071264,3.05911,3269.0,3268.2,3.05975]
[1737933071815,3.05911,3269.0,3268.1,0.75]
[1737933072128,3.05885,3269.2,3268.4,3.05951]
[1737933072463,3.05866,3269.4,3268.1,3.80985]
[1737933072627,3.05948,3268.6,3268.1,0.75]
[1737933072956,0.7869,3269.2,3268.2,3.09638557]
[1737933073159,3.88066,3269.6,3268.6,3.05938]
[1737933073374,3.0584,3269.7,3269.1,3.05891]
[1737933073652,3.0584,3269.7,3269.2,0.03743699]
[1737933073952,3.0584,3269.7,3268.4,0.8199]
[1737933073953,3.0584,3269.7,3268.9,3.05905]
[1737933074255,3.05801,3270.1,3269.3,0.7578]
[1737933074563,0.7564,3270.6,3269.4,0.02340099]
[1737933074718,3.05763,3270.5,3269.7,3.05833]
[1737933074916,3.05764,3270.5,3269.5,3.05849]
[1737933075121,3.05764,3270.5,3269.8,3.09561521]
[1737933075452,0.7829,3270.7,3269.9,3.09551521]
[1737933075664,3.05727,3270.9,3270.1,3.05794]
[1737933076019,3.05727,3270.9,3270.3,3.05782]
[1737933076439,3.0,3271.1,3270.4,0.03717086]
[1737933076639,3.05727,3270.9,3270.1,3.05794]
[1737933076955,3.05727,3270.9,3270.2,0.03717086]
[1737933077717,0.4081294,3271.0,3270.3,3.05778]
[1737933077922,3.4653494,3271.0,3270.2,3.09505086]
[1737933078224,3.0,3271.3,3270.6,3.05747]
[1737933078531,3.05708,3271.1,3270.7,0.0368498]
[1737933078928,3.0,3271.3,3270.2,3.05789]
[1737933079258,3.05717,3271.0,3270.3,3.05779]
[1737933079462,3.05705,3271.2,3270.4,3.09403618]
[1737933079762,3.668479,3271.1,3270.4,3.09403618]
[1737933079929,3.05717,3271.0,3270.4,0.03637618]
[1737933080118,3.05736,3270.8,3270.4,0.03637618]
[1737933080320,3.05717,3271.0,3270.0,3.85914]
[1737933080561,3.05717,3271.0,3270.5,0.03631199]
[1737933080749,0.3668569,3270.9,3270.1,0.02337782]
[1737933080933,0.3668569,3270.9,3270.6,0.03631199]
[1737933081129,0.3668569,3270.9,3270.2,3.0579]
[1737933081337,3.4241269,3270.9,3270.7,0.03631199]
[1737933081531,3.4241269,3270.9,3270.2,3.0579]
[1737933081752,3.4241169,3270.9,3270.8,0.03631199]
[1737933081944,3.4241169,3270.9,3270.0,3.85911]
[1737933082251,3.05767,3270.5,3270.1,0.03631199]
[1737933082560,3.0579,3270.3,3270.1,0.03631199]
[1737933082733,1.223502,3271.9,3270.2,0.8056]
[1737933082933,2.2829791,3272.9,3270.2,0.8056]
[1737933082934,3.05708,3271.1,3270.4,0.8056]
[1737933083248,3.05717,3271.0,3270.4,0.8056]
[1737933083434,3.05737,3270.8,3270.4,0.8056]
[1737933083637,3.05737,3270.8,3270.5,0.0363716]
[1737933083869,3.05754,3270.6,3270.5,0.0363716]
[1737933084171,3.05754,3270.6,3270.1,0.814]
[1737933084467,3.05781,3270.4,3270.2,0.0363395]
[1737933084766,0.305717,3271.0,3269.8,0.0233871]
[1737933084969,3.0,3271.1,3270.3,0.03636243]
[1737933085171,3.05727,3270.9,3270.1,3.05795]
[1737933085462,3.0,3271.2,3270.2,0.03636243]
[1737933085625,3.05728,3270.9,3270.1,3.05795]
[1737933085827,0.611445,3270.9,3270.2,3.09424243]
[1737933086023,0.7843,3271.3,3270.3,0.82287775]
[1737933086265,3.0564,3271.9,3271.1,3.05706]
[1737933086266,3.05639,3271.9,3271.1,3.05706]
[1737933086571,3.05662,3271.6,3271.2,0.0363716]
[1737933086747,3.05688,3271.3,3271.2,0.0363716]
[1737933086947,3.05738,3270.8,3270.1,3.8575]
[1737933087267,0.7894,3271.2,3270.2,0.05829111]
[1737933087435,3.05707,3271.1,3270.4,3.0577]
[1737933087864,3.05731,3270.9,3270.5,0.03491325]
[1737933088223,3.05737,3270.8,3270.2,3.05791]
[1737933088435,3.05737,3270.8,3270.3,0.03491325]
[1737933088761,3.05707,3271.1,3270.2,3.05791]
[1737933088961,0.7779,3271.4,3270.4,0.03491325]
[1737933088962,3.05691,3271.3,3270.4,0.03491325]
[1737933089153,3.05691,3271.3,3270.6,3.05744]
[1737933089560,0.0382137,3271.2,3270.7,0.03491325]
[1737933089738,3.05703,3271.2,3270.7,0.03491325]
[1737933090071,3.05696,3271.3,3270.8,0.03491325]
[1737933090264,3.05716,3271.1,3270.4,3.05771]
[1737933090627,3.05716,3271.1,3270.5,0.03491325]
[1737933090829,3.05717,3271.0,3270.5,0.03491325]
[1737933091445,0.305696,3271.2,3270.5,0.03491325]
[1737933092446,3.05717,3271.0,3270.5,0.03491325]
[1737933092772,0.60281615,3271.9,3270.8,3.05735]
[1737933092971,3.8044,3272.5,3271.2,3.05698]
[1737933093275,0.52536544,3272.7,3272.2,3.83722]
[1737933093445,0.60997235,3273.0,3272.6,3.05567]
[1737933093644,3.8044,3273.7,3273.0,3.05529]
[1737933093955,3.05482,3273.6,3273.1,0.03487202]
[1737933094157,3.0,3273.4,3273.1,0.03487202]
[1737933094339,6.85908,3273.7,3272.8,3.05545]
[1737933094541,6.85908,3273.7,3272.6,3.05566]
[1737933094542,3.0,3273.4,3273.2,0.03375592]
[1737933094743,6.0543,3274.1,3273.2,3.05508]
[1737933094944,3.0,3274.1,3273.3,3.07830113]
[1737933095149,3.0,3274.0,3273.3,3.0883066]
[1737933095470,3.05436,3274.0,3273.3,0.0333166]
[1737933095678,3.0,3274.2,3273.0,3.83648]
[1737933095679,3.0,3273.6,3273.0,0.7812]
[1737933095968,6.05482,3273.6,3273.1,0.0333166]
[1737933096368,3.0,3273.4,3273.1,0.0333166]
[1737933096573,6.05511,3273.2,3273.1,0.0333166]
[1737933096770,3.0,3273.2,3273.1,0.0333166]
[1737933096971,3.0,3273.4,3272.5,0.7812]
[1737933097199,3.0,3273.2,3272.5,0.7812]
[1737933097402,3.0,3273.2,3272.6,0.03136453]
[1737933097678,3.05527,3273.1,3272.6,0.03136453]
[1737933097847,3.0553,3273.0,3272.6,0.03136453]
[1737933098048,6.05514,3273.2,3272.6,0.03136453]
[1737933098250,0.911017,3273.1,3272.6,0.03136453]
[1737933098650,3.0,3273.2,3272.6,0.03136453]
[1737933099776,3.05495,3273.4,3272.6,0.03136453]
[1737933100452,3.0,3273.4,3272.6,0.03136453]
[1737933100659,3.0,3273.1,3272.6,0.03136453]
[1737933100958,6.05521,3273.1,3272.6,0.03136453]
[1737933101143,0.911041,3273.0,3272.6,0.03136453]
[1737933101473,3.0,3273.1,3272.5,0.7812]
[1737933101673,3.0,3273.1,3272.6,0.03144223]
[1737933102857,3.05523,3273.1,3272.6,0.03144223]
[1737933103057,6.05505,3273.3,3272.6,0.03144223]
[1737933103581,3.05514,3273.2,3272.6,0.03144223]
[1737933104043,6.05494,3273.4,3272.6,0.03144223]
[1737933104247,3.05503,3273.3,3272.6,0.03144223]
[1737933104447,3.605494,3273.4,3272.6,0.03144223]
[1737933104642,3.660424,3273.4,3272.6,0.03144223]
[1737933104881,3.0,3273.3,3272.6,3.08708223]
[1737933105174,3.05532,3273.0,3272.6,0.03144223]
[1737933105381,3.05517,3273.2,3272.6,0.03144223]
[1737933106174,3.05523,3273.1,3272.6,0.03144223]
[1737933106350,0.305523,3273.0,3272.6,0.03144223]
[1737933106558,3.360823,3273.0,3272.6,0.03144223]
[1737933106781,0.305523,3273.0,3272.6,0.03144223]
[1737933106984,3.05521,3273.1,3272.6,0.03144223]
[1737933107647,0.03819029,3273.0,3272.6,0.03144223]
[1737933107849,3.0,3272.7,3272.1,0.819]
[1737933108185,3.0,3272.6,3272.2,0.03153821]
[1737933108380,3.0,3272.7,3272.2,0.03153821]
[1737933108686,3.0,3273.1,3272.4,3.05578]
[1737933108891,3.05492,3273.4,3272.4,3.05578]
[1737933109090,3.0,3273.3,3272.5,0.03153821]
[1737933109298,3.0,3273.3,3272.6,0.761]
[1737933109580,3.0,3273.3,3272.6,0.79253821]
[1737933109962,3.05492,3273.4,3272.6,3.84812821]
[1737933110182,3.0,3273.7,3273.0,0.8275]
[1737933110485,0.305436,3273.9,3273.0,0.8275]
[1737933110695,3.2504,3274.3,3273.1,0.03153821]
[1737933110959,3.05454,3273.9,3273.1,0.03153821]
[1737933111082,3.0,3274.2,3273.3,3.05496]
[1737933111405,3.0,3274.2,3273.5,0.7501]
[1737933111564,0.2504,3274.3,3273.6,3.05473]
[1737933111972,0.2504,3274.3,3273.7,0.03153821]
[1737933112186,0.2504,3274.3,3273.7,3.08617821]
[1737933112381,0.2504,3274.3,3273.8,3.05454]
[1737933112599,0.2504,3274.3,3273.5,1.130599]
[1737933112778,0.2504,3274.3,3273.9,0.03153821]
[1737933112985,3.0,3274.2,3273.5,0.7501]
[1737933113279,0.2504,3274.3,3274.2,3.05418]
[1737933113280,0.07514428,3274.3,3274.2,3.05418]
[1737933113466,0.07514428,3274.3,3274.2,3.92598647]
[1737933113665,0.07514428,3274.3,3274.2,4.84220196]
[1737933113973,0.07514428,3274.3,3274.2,5.74220196]
[1737933113974,4.28e-06,3274.3,3274.2,5.74220196]
[1737933114790,1.95020212,3276.8,3274.5,0.7931]
[1737933114978,3.05186,3276.7,3275.7,0.7931]
[1737933115177,3.0,3276.6,3275.8,0.02324368]
[1737933115367,3.0,3276.8,3275.9,0.38691137]
[1737933115566,3.05158,3277.0,3275.9,0.38691137]
[1737933115567,3.05158,3277.0,3275.9,0.41619789]
[1737933115877,3.0,3276.5,3275.9,0.41619789]
[1737933116078,6.05204,3276.5,3275.9,0.02928652]
[1737933116382,6.05204,3276.5,3275.7,0.7931]
[1737933116591,0.7978,3276.7,3275.7,0.7931]
[1737933116592,6.10388,3276.6,3275.7,0.7931]
[1737933116789,0.7978,3276.7,3275.8,0.02894436]
[1737933117012,3.0,3276.2,3275.8,0.02894436]
[1737933117327,3.0,3276.2,3275.7,0.7931]
[1737933117671,3.0,3276.6,3275.8,0.02886682]
[1737933117896,3.0,3276.6,3275.8,0.4163485]
[1737933118174,3.05183,3276.8,3275.8,0.4163485]
[1737933118602,3.05188,3276.7,3275.8,0.4163485]
[1737933118802,3.05194,3276.6,3275.8,0.4163485]
[1737933119138,3.05194,3276.6,3275.8,0.02886682]
[1737933119285,3.0523,3276.3,3275.8,0.02886682]
[1737933119631,3.05216,3276.4,3275.7,0.7931]
[1737933119838,6.10436,3276.4,3275.7,0.7931]
[1737933120031,0.7925,3278.0,3275.9,0.8322]
[1737933120198,3.05166,3277.0,3275.9,0.8322]
[1737933120380,3.0,3276.9,3276.0,0.02887139]
[1737933120577,3.0,3277.4,3276.0,0.02887139]
[1737933120782,3.05211,3276.5,3276.0,0.02887139]
[1737933121241,3.0,3276.6,3275.9,0.8322]
[1737933121439,3.0,3276.8,3276.1,0.02887139]
[1737933121585,3.0,3276.8,3275.9,0.8322]
[1737933121789,3.0,3276.8,3276.2,0.02879842]
[1737933121987,3.0,3276.8,3275.9,0.8322]
[1737933122245,3.0,3276.8,3276.3,0.02863427]
[1737933122412,6.05176,3276.8,3276.0,0.388488]
[1737933122907,6.05176,3276.8,3276.1,0.02863427]
[1737933123342,3.0,3277.0,3276.1,0.02863427]
[1737933123544,3.0,3277.0,3276.2,3.84117]
[1737933123759,3.05128,3277.4,3276.3,0.38698043]
[1737933123906,3.0513,3277.3,3276.3,3.43912043]
[1737933124263,6.05118,3277.5,3276.4,3.08069148]
[1737933124407,3.0,3277.3,3276.5,0.7715]
[1737933124746,3.0,3277.0,3276.5,0.7715]
[1737933125042,3.0,3277.5,3274.5,6.05382]
[1737933125043,6.05193,3276.7,3276.6,0.02861148]
[1737933125410,3.0,3276.1,3274.9,3.82501]
[1737933125653,3.0526,3275.9,3274.9,3.82501]
[1737933125868,3.05303,3275.5,3274.9,0.7715]
[1737933126149,3.05307,3275.4,3274.9,0.7715]
[1737933126329,3.05317,3275.3,3274.9,0.7715]
[1737933126737,3.05317,3275.3,3274.3,0.7715]
[1737933127047,3.0,3275.6,3274.6,3.05373]
[1737933127233,3.05288,3275.6,3274.6,3.05373]
[1737933127431,3.0,3275.4,3274.7,0.7586]
[1737933127636,3.0,3275.2,3274.7,0.7586]
[1737933127846,3.0,3275.0,3274.7,0.7586]
[1737933128448,3.0,3275.6,3274.7,0.7586]
[1737933128610,3.05361,3274.9,3274.2,0.7586]
[1737933128949,3.0536,3274.9,3274.2,0.7586]
[1737933129834,3.0,3274.8,3274.2,0.7586]
[1737933130032,3.05391,3274.5,3274.2,0.7586]
[1737933130234,3.7666,3275.3,3273.8,0.7773]
[1737933130439,6.05407,3274.4,3273.8,0.7773]
[1737933130947,3.05423,3274.2,3273.8,0.7773]
[1737933131123,3.05423,3274.2,3273.2,0.7567]
[1737933131319,3.05399,3274.4,3273.2,0.7567]
[1737933131661,0.7847,3274.5,3273.2,0.7567]
[1737933131662,0.7847,3274.5,3273.4,3.05492]
[1737933131840,3.05409,3274.3,3273.4,3.05492]
[1737933132244,3.05381,3274.6,3273.4,3.05492]
[1737933132245,3.0,3274.4,3273.5,0.0232944]
[1737933132421,3.05401,3274.4,3273.5,0.0232944]
[1737933132760,3.05304082,3274.3,3273.4,3.0782144]
[1737933133059,3.05304082,3274.3,3273.5,0.58738965]
[1737933133256,3.05426,3274.2,3273.5,0.58738965]
[1737933133483,3.05426,3274.2,3273.3,0.381181]
[1737933133631,3.05431,3274.1,3273.3,0.381181]
[1737933133839,3.05431,3274.1,3273.2,0.7567]
[1737933134233,3.05431,3274.1,3273.2,3.81181]
[1737933134556,3.05431,3274.1,3273.2,0.7567]
[1737933134757,3.05438,3274.0,3273.2,0.7567]
[1737933135262,3.0,3274.3,3273.3,3.17790106]
[1737933135436,3.0,3274.3,3273.4,0.31779011]
[1737933135644,3.05409,3274.3,3273.4,3.37271011]
[1737933136549,3.0,3274.2,3273.4,0.31779011]
[1737933137163,3.0,3274.4,3273.5,0.02329917]
[1737933137381,3.0,3274.2,3273.4,0.31779011]
[1737933137775,3.05417,3274.3,3273.3,0.7634]
[1737933138084,3.05417,3274.3,3273.4,3.05491]
[1737933138267,3.0,3274.2,3273.4,3.05491]
[1737933138873,3.0,3273.6,3273.3,0.7634]
[1737933139071,3.055,3273.4,3272.5,0.7634]
[1737933139257,3.05511,3273.2,3272.6,0.381924]
[1737933139459,3.0,3273.1,3272.5,0.7634]
[1737933139846,3.05537,3273.0,3272.5,0.7634]
[1737933140187,6.09328949,3273.3,3271.2,3.70824778]
[1737933140188,3.0,3272.7,3272.0,0.7741]
[1737933140357,3.05566,3272.7,3272.0,0.7741]
[1737933140559,3.05589,3272.4,3272.0,0.7741]
[1737933140766,3.05521,3273.1,3272.0,0.7741]
[1737933140767,3.0,3273.0,3272.0,0.7741]
[1737933140965,3.05577,3272.5,3272.0,0.7741]
[1737933141549,0.55,3273.2,3272.0,0.7741]
[1737933141785,3.05594,3272.4,3272.0,0.7741]
[1737933142089,3.05595,3272.3,3272.0,0.7741]
[1737933143586,3.05577,3272.5,3272.0,0.7741]
[1737933143881,3.00587,3272.4,3272.0,0.7741]
[1737933144477,3.05606,3272.2,3272.0,0.7741]
[1737933144671,6.05595,3272.3,3272.0,0.7741]
[1737933144889,3.0557,3272.6,3272.0,0.7741]
[1737933145086,3.05522,3273.1,3272.2,3.05598]
[1737933145285,3.05522,3273.1,3272.4,0.8289]
[1737933145588,3.0,3273.6,3272.5,0.01739841]
[1737933145788,3.0,3273.8,3273.0,0.8289]
[1737933145999,3.0,3274.0,3273.0,0.84631068]
[1737933146287,3.0,3274.0,3273.2,3.05511]
[1737933146494,3.0,3274.0,3273.2,3.07258687]
[1737933146675,6.05418,3274.2,3273.3,3.36219869]
[1737933146876,3.0,3274.3,3273.4,0.01752953]